bitfinex/quotes_SOLUSD_20250118
["timestamp","ask_amount","ask_price","bid_price","bid_amount"]
[1737231241821,0.03,256.1,256.04,20.0]
[1737231242008,0.03,256.1,256.05,20.0]
[1737231242318,0.76224959,256.1,256.05,20.0]
[1737231242522,0.76224959,256.1,256.04,20.0]
[1737231243102,18.92942113,256.07,255.96,18.92942113]
[1737231243303,18.92942113,256.05,255.94,18.92942113]
[1737231243507,18.92942113,256.01,255.93,0.063]
[1737231243706,0.73257981,256.0,255.99,0.063]
[1737231246920,29.50946381,256.0,255.99,0.063]
[1737231247115,48.43888494,256.0,255.99,0.063]
[1737231247325,48.43888494,256.0,255.93,0.063]
[1737231247326,25.0,255.96,255.93,0.063]
[1737231247515,25.0,255.96,255.88,0.063]
[1737231247516,5.0,255.91,255.88,0.063]
[1737231247708,5.0,255.88,255.87,0.063]
[1737231248037,20.0,255.76,255.72,0.063]
[1737231248322,25.0,255.71,255.7,0.01885584]
[1737231248504,58.59248961,255.71,255.59,12.16045108]
[1737231248703,18.92942113,255.65,255.59,12.16045108]
[1737231249117,0.73360363,255.75,255.63,18.92942113]
[1737231249322,5.0,255.88,255.63,18.92942113]
[1737231249323,18.92942113,255.82,255.73,18.92942113]
[1737231249522,0.73308096,255.81,255.73,18.92942113]
[1737231250026,0.73308965,255.81,255.76,20.0]
[1737231250322,0.7330716,255.83,255.77,23.776884]
[1737231250504,18.92942113,255.88,255.8,20.0]
[1737231250702,0.73291509,255.87,255.8,20.0]
[1737231251424,18.92942113,255.86,255.8,20.0]
[1737231251627,5.0,255.98,255.8,20.0]
[1737231251628,18.92942113,255.88,255.8,20.0]
[1737231251810,0.73293328,255.87,255.8,20.0]
[1737231252121,18.92942113,255.9,255.82,20.0]
[1737231252329,0.73284731,255.89,255.82,20.0]
[1737231252813,18.92942113,255.92,255.84,20.0]
[1737231253006,0.73280415,255.91,255.84,20.0]
[1737231253713,0.73280415,255.91,255.89,18.92942113]
[1737231253915,9.8581741,256.08,255.9,23.776884]
[1737231253916,0.73277401,256.07,255.9,23.776884]
[1737231254112,0.73277401,256.07,255.89,18.92942113]
[1737231254113,0.73277401,256.07,255.98,18.92942113]
[1737231254313,0.73232958,256.09,256.0,18.92942113]
[1737231254516,18.92942113,256.06,255.95,18.92942113]
[1737231254717,0.73245231,256.05,255.95,18.92942113]
[1737231255134,0.73245231,256.05,255.98,20.0]
[1737231256233,42.70630513,256.04,255.93,18.92942113]
[1737231256531,0.73260523,256.03,255.96,18.92942113]
[1737231256720,0.73243074,256.05,255.96,18.92942113]
[1737231257909,0.73243074,256.05,255.99,20.0]
[1737231258117,0.03,256.1,256.04,18.92942113]
[1737231258721,0.03,256.1,256.05,20.0]
[1737231259318,0.03,256.1,256.08,18.92942113]
[1737231259519,0.03,256.1,256.04,18.92942113]
[1737231259827,0.03,256.1,256.07,20.0]
[1737231260030,0.03,256.1,256.0,18.92942113]
[1737231260233,0.76231794,256.1,256.0,18.92942113]
[1737231261214,18.92942113,256.07,256.01,20.0]
[1737231261419,0.73242587,256.06,256.01,20.0]
[1737231261925,0.73242587,256.06,255.98,18.92942113]
[1737231262429,0.73240387,256.08,255.98,18.92942113]
[1737231262929,0.73240387,256.08,255.88,10.63820688]
[1737231262930,42.70630513,256.07,255.96,18.92942113]
[1737231263135,18.92942113,255.99,255.9,18.92942113]
[1737231263432,0.73263905,255.98,255.9,18.92942113]
[1737231263932,18.92942113,256.01,255.92,18.92942113]
[1737231264136,0.73253299,256.0,255.92,18.92942113]
[1737231264836,18.92942113,256.01,255.92,18.92942113]
[1737231264837,0.03,256.1,256.01,20.0]
[1737231265135,0.03,256.1,256.04,18.92942113]
[1737231265436,0.03,256.1,256.02,18.92942113]
[1737231265631,0.76228249,256.1,256.02,18.92942113]
[1737231266134,0.03,256.1,256.06,18.92942113]
[1737231267423,0.03,256.1,256.01,20.0]
[1737231267737,0.03,256.1,256.05,18.92942113]
[1737231269238,0.03,256.1,256.09,18.92942113]
[1737231269540,0.03,256.1,256.09,20.0]
[1737231270840,0.03,256.1,256.01,26.7332]
[1737231271142,0.03,256.1,256.09,20.0]
[1737231271328,0.03,256.1,256.04,18.92942113]
[1737231271526,18.92942113,256.09,255.99,18.92942113]
[1737231271730,0.73235153,256.08,255.99,18.92942113]
[1737231272033,0.73235153,256.08,255.93,6.4412]
[1737231272338,0.73235153,256.08,256.02,20.0]
[1737231272531,0.73235153,256.08,256.01,18.92942113]
[1737231272732,24.53922907,256.1,256.01,18.92942113]
[1737231273325,0.03,256.1,256.05,18.92942113]
[1737231274236,0.03,256.1,256.03,18.92942113]
[1737231274541,23.806884,256.1,256.01,18.92942113]
[1737231274729,0.73237541,256.09,256.01,18.92942113]
[1737231275820,18.92942113,256.02,255.84,26.94709589]
[1737231276025,23.776884,255.99,255.9,18.92942113]
[1737231276234,0.73268322,255.98,255.9,18.92942113]
[1737231276435,0.73269117,255.99,255.92,18.92942113]
[1737231276635,19.66198257,256.06,255.96,18.92942113]
[1737231276837,0.73256144,256.06,255.98,18.92942113]
[1737231277447,0.73234579,256.07,256.02,18.92942113]
[1737231277750,0.7622996,256.1,256.02,18.92942113]
[1737231278136,0.03,256.1,256.08,18.92942113]
[1737231279737,0.03,256.15,256.12,20.0]
[1737231280041,0.03,256.15,256.14,18.92942113]
[1737231280539,0.03,256.15,256.14,42.70630513]
[1737231280745,0.03,256.23,256.17,20.0]
[1737231280925,0.03,256.23,256.22,18.92942113]
[1737231281326,0.03,256.34,256.25,20.0]
[1737231281529,0.03,256.34,256.33,18.92942113]
[1737231281727,18.92942113,256.43,256.33,18.92942113]
[1737231281961,23.776884,256.41,256.33,18.92942113]
[1737231282142,0.73147422,256.4,256.33,18.92942113]
[1737231282443,0.7314615,256.42,256.35,18.92942113]
[1737231282643,0.76139155,256.48,256.41,18.92942113]
[1737231282853,0.76139155,256.48,256.43,18.92942113]
[1737231283043,0.03,256.48,256.43,18.92942113]
[1737231283945,0.03,256.48,256.47,38.92942113]
[1737231285350,0.03,256.48,256.47,30.84772042]
[1737231286755,0.03,256.48,256.47,85.47232484]
[1737231286947,0.03,256.48,256.47,85.91099627]
[1737231287544,0.03,256.48,256.47,31.28639185]
[1737231287747,0.03,256.48,256.47,30.84772042]
[1737231292353,0.03,256.48,256.47,85.47232484]
[1737231292647,0.03,256.48,256.47,85.91099907]
[1737231293044,0.03,256.48,256.47,123.51099907]
[1737231293353,0.03,256.6,256.59,30.84772042]
[1737231294457,0.03,256.6,256.59,85.47232484]
[1737231294658,0.03,256.6,256.59,90.91029898]
[1737231294964,6.6819,256.84,256.76,30.84772042]
[1737231295149,0.73019381,256.83,256.76,30.84772042]
[1737231295461,0.73016812,256.85,256.8,30.84772042]
[1737231295754,30.84772042,256.88,256.78,30.84772042]
[1737231295943,0.73018033,256.87,256.78,30.84772042]
[1737231296135,0.73016689,256.96,256.88,20.0]
[1737231296333,0.72981222,257.02,256.95,30.84772042]
[1737231296550,0.72970621,257.05,256.99,30.84772042]
[1737231296748,0.72953297,257.08,257.03,30.84772042]
[1737231296979,0.72945495,257.13,257.07,30.84772042]
[1737231297133,0.72930067,257.17,257.07,30.84772042]
[1737231298037,30.84772042,257.14,257.03,30.84772042]
[1737231298239,30.84772042,257.12,257.02,30.84772042]
[1737231298440,0.72942457,257.11,257.02,30.84772042]
[1737231298643,0.72942457,257.11,257.0,30.84772042]
[1737231298846,30.84772042,257.08,256.98,30.84772042]
[1737231299054,0.72961579,257.07,256.98,30.84772042]
[1737231299941,30.84772042,257.04,256.94,30.84772042]
[1737231300248,4.61961579,257.07,256.85,30.84772042]
[1737231300249,23.776884,256.94,256.85,30.84772042]
[1737231300438,30.84772042,256.88,256.79,30.84772042]
[1737231300638,30.84772042,256.92,256.81,30.84772042]
[1737231300853,0.72999289,256.91,256.81,30.84772042]
[1737231301260,30.84772042,256.88,256.77,30.84772042]
[1737231301456,30.84772042,256.84,256.75,30.84772042]
[1737231301662,11.73,257.06,256.68,1.5492999]
[1737231301663,30.84772042,256.88,256.79,30.84772042]
[1737231301854,0.7300855,256.87,256.79,30.84772042]
[1737231302366,30.84772042,256.86,256.77,30.84772042]
[1737231302568,0.73015973,256.85,256.77,30.84772042]
[1737231303060,30.84772042,256.78,256.67,31.28518478]
[1737231303239,24.50704373,256.85,256.65,30.84772042]
[1737231303240,30.84772042,256.75,256.65,30.84772042]
[1737231303445,30.84772042,256.83,256.73,30.84772042]
[1737231303663,30.84772042,256.87,256.77,30.84772042]
[1737231303869,0.73015434,256.86,256.77,30.84772042]
[1737231304485,30.84772042,256.89,256.79,30.84772042]
[1737231304663,0.73000062,256.88,256.79,30.84772042]
[1737231304964,0.03,256.92,256.86,20.0]
[1737231305136,30.84772042,256.87,256.77,0.43694246]
[1737231305339,30.84772042,256.85,256.76,30.84772042]
[1737231305535,0.73014715,256.84,256.77,0.43746147]
[1737231305756,0.73014715,256.84,256.78,30.84772042]
[1737231306067,0.73010603,256.86,256.78,30.84772042]
[1737231306742,31.57783836,256.89,256.8,30.84772042]
[1737231307258,0.75997426,256.92,256.84,30.84772042]
[1737231307463,0.75997426,256.92,256.82,30.84772042]
[1737231307668,30.84772042,256.91,256.83,20.0]
[1737231307960,0.7300186,256.9,256.83,20.0]
[1737231308165,30.84772042,256.87,256.78,30.84772042]
[1737231308343,31.57787186,256.86,256.78,30.84772042]
[1737231308751,31.57787186,256.86,256.76,30.84772042]
[1737231308968,30.84772042,256.84,256.74,30.84772042]
[1737231309156,0.73020232,256.83,256.77,20.0]
[1737231309359,0.73020232,256.83,256.74,30.84772042]
[1737231309765,30.84772042,256.8,256.7,30.84772042]
[1737231309947,30.84772042,256.82,256.72,30.84772042]
[1737231310143,0.73022245,256.81,256.73,0.43761207]
[1737231310363,0.73022245,256.81,256.74,30.84772042]
[1737231310578,30.84772042,256.86,256.76,30.84772042]
[1737231310872,0.73015363,256.85,256.79,30.84772042]
[1737231311045,30.84772042,256.86,256.76,30.84772042]
[1737231311249,0.73014509,256.85,256.76,30.84772042]
[1737231311451,0.73014509,256.85,256.78,30.84772042]
[1737231311663,0.73014509,256.85,256.76,30.84772042]
[1737231312061,30.84772042,256.84,256.74,30.84772042]
[1737231312252,30.84772042,256.81,256.71,30.84772042]
[1737231312575,0.73028716,256.8,256.74,20.0]
[1737231312749,23.776884,256.76,256.67,30.84772042]
[1737231312944,30.84772042,256.73,256.63,30.84772042]
[1737231313150,0.73051938,256.72,256.63,30.84772042]
[1737231313478,0.73051938,256.72,256.55,6.1751]
[1737231313479,31.5782398,256.75,256.67,30.84772042]
[1737231314575,30.84772042,256.79,256.69,30.84772042]
[1737231314749,0.73034736,256.78,256.69,30.84772042]
[1737231314953,34.74132042,256.83,256.73,30.84772042]
[1737231315170,0.73022826,256.82,256.73,30.84772042]
[1737231315466,0.73022826,256.82,256.65,20.0]
[1737231315467,30.84772042,256.87,256.77,30.84772042]
[1737231315651,30.84772042,256.85,256.75,30.84772042]
[1737231315962,31.57798806,256.89,256.79,30.84772042]
[1737231316165,31.57798806,256.89,256.8,0.43721649]
[1737231316558,31.57798806,256.89,256.79,30.84772042]
[1737231316983,0.73026764,256.89,256.83,30.84772042]
[1737231317260,54.62460442,256.91,256.81,30.84772042]
[1737231317465,30.84772042,256.89,256.79,30.84772042]
[1737231317664,0.73010027,256.88,256.79,30.84772042]
[1737231317965,0.73010027,256.88,256.8,0.43735882]
[1737231318463,0.73010027,256.88,256.81,30.84772042]
[1737231318658,0.03,256.92,256.83,30.84772042]
[1737231318863,0.75994865,256.92,256.83,30.84772042]
[1737231319863,30.84772042,256.85,256.75,0.43705001]
[1737231320058,30.84772042,256.81,256.74,0.063]
[1737231320251,0.73026277,256.8,256.74,0.063]
[1737231320966,4.62446277,256.8,256.74,0.063]
[1737231321765,0.73026277,256.8,256.74,0.063]
[1737231322148,30.84772042,256.85,256.74,30.91072042]
[1737231322352,0.73014662,256.84,256.76,30.84772042]
[1737231322556,0.73010282,256.86,256.77,0.43737281]
[1737231322757,0.73010282,256.86,256.78,30.84772042]
[1737231323782,0.76010211,256.92,256.84,20.0]
[1737231324072,30.84772042,256.89,256.79,30.84772042]
[1737231324275,0.73006924,256.88,256.79,30.84772042]
[1737231324859,4.62286924,256.88,256.79,30.84772042]
[1737231325269,30.84772042,256.85,256.75,30.84772042]
[1737231325573,30.84772042,256.85,256.76,0.43747687]
[1737231325771,30.84772042,256.87,256.77,30.84772042]
[1737231325975,0.7300732,256.86,256.78,0.43731357]
[1737231326274,0.7300732,256.86,256.78,0.43730282]
[1737231326577,30.84772042,256.83,256.74,0.063]
[1737231326763,30.84772042,256.75,256.74,0.063]
[1737231327765,30.84772042,256.77,256.74,0.063]
[1737231327967,0.73036431,256.76,256.74,0.063]
[1737231328162,0.73033606,256.78,256.74,0.063]
[1737231328873,30.84772042,256.78,256.74,0.063]
[1737231329074,30.84772042,256.76,256.74,0.063]
[1737231329368,24.50732547,256.75,256.74,0.063]
[1737231329569,0.73044147,256.75,256.74,0.063]
[1737231331078,30.84772042,256.8,256.74,0.063]
[1737231331279,0.73028576,256.81,256.74,0.063]
[1737231331481,0.73028576,256.81,256.74,0.50057065]
[1737231331775,0.73019411,256.83,256.74,0.50057065]
[1737231331981,4.62379411,256.83,256.74,0.063]
[1737231332166,31.57794257,256.82,256.74,0.063]
[1737231332369,0.73025287,256.81,256.74,0.063]
[1737231332569,71.69544084,256.75,256.73,0.063]
[1737231332874,0.73072044,256.74,256.6,30.84772042]
[1737231333080,34.74312042,256.72,256.61,0.43829641]
[1737231333376,0.73056398,256.71,256.61,0.43829641]
[1737231333769,0.73056398,256.71,256.62,30.84772042]
[1737231333963,0.73056398,256.71,256.51,1.5543]
[1737231333964,0.73056398,256.71,256.63,0.43818975]
[1737231334275,30.84772042,256.65,256.54,30.84772042]
[1737231334479,30.84772042,256.65,256.57,20.0]
[1737231334662,30.84772042,256.67,256.58,0.43849376]
[1737231334859,0.73066329,256.66,256.57,20.43849375]
[1737231335063,0.73066329,256.66,256.57,0.43849375]
[1737231335260,31.57838371,256.69,256.6,30.84772042]
[1737231335475,31.57838371,256.69,256.61,0.43825888]
[1737231335780,30.84772042,256.65,256.53,31.28602611]
[1737231336085,0.73067052,256.64,256.55,30.84772042]
[1737231336278,0.73070111,256.66,256.58,20.0]
[1737231336663,30.84772042,256.65,256.58,20.0]
[1737231336864,30.84772042,256.61,256.51,30.84772042]
[1737231337063,30.84772042,256.59,256.49,30.84772042]
[1737231337277,0.73091926,256.58,256.52,20.0]
[1737231337665,30.84772042,256.61,256.52,20.0]
[1737231337865,0.73082609,256.6,256.52,0.43881934]
[1737231338268,0.73082609,256.6,256.37,0.43881851]
[1737231338269,23.776884,256.53,256.37,0.43881851]
[1737231338473,54.62460442,256.49,256.35,0.43935824]
[1737231338786,54.62460442,256.49,256.34,31.2871927]
[1737231339079,90.47232484,256.49,256.33,6.08064458]
[1737231339263,54.62460442,256.49,256.33,6.08064458]
[1737231339460,54.62460442,256.49,256.36,30.84772042]
[1737231339664,54.62460442,256.49,256.36,31.28717556]
[1737231339864,54.62460442,256.49,256.37,0.43959232]
[1737231340282,58.52330442,256.49,256.36,30.84772042]
[1737231340480,58.52330442,256.49,256.37,0.439438]
[1737231340689,58.52330442,256.49,256.36,30.84772042]
[1737231340991,23.776884,256.48,256.31,30.91072042]
[1737231341171,30.84772042,256.4,256.31,30.91072042]
[1737231341377,0.73148911,256.39,256.31,30.91072042]
[1737231342069,30.84772042,256.38,256.31,0.063]
[1737231342269,0.7315613,256.37,256.31,0.063]
[1737231343367,5.0,256.14,255.97,29.59057492]
[1737231343572,30.84772042,256.02,255.97,29.59057492]
[1737231343777,54.62460442,256.02,256.01,4.458e-05]
[1737231343977,0.73261238,256.07,256.01,4.458e-05]
[1737231344189,5.73246035,256.15,256.01,4.458e-05]
[1737231344387,30.84772042,256.05,256.01,4.458e-05]
[1737231344588,30.84772042,256.03,256.01,4.458e-05]
[1737231344787,24.50939379,256.02,255.89,30.84772042]
[1737231344987,30.84772042,256.0,255.89,30.84772042]
[1737231345282,30.84772042,255.98,255.87,30.84772042]
[1737231345473,30.84772042,255.96,255.85,30.84772042]
[1737231345668,23.776884,256.02,255.77,16.6059]
[1737231345669,30.84772042,255.94,255.78,3.9096]
[1737231345884,30.84772042,255.92,255.82,30.84772042]
[1737231346065,30.84772042,255.94,255.84,30.84772042]
[1737231346385,30.84772042,255.96,255.86,30.84772042]
[1737231346572,30.84772042,255.98,255.88,30.84772042]
[1737231346772,0.73261604,255.97,255.88,30.84772042]
[1737231347483,30.84772042,255.98,255.88,17.26604475]
[1737231347683,30.84772042,256.0,255.9,30.84772042]
[1737231347886,30.84772042,255.94,255.87,20.0]
[1737231348096,30.84772042,255.92,255.87,20.0]
[1737231348389,30.84772042,255.92,255.82,30.84772042]
[1737231349104,30.84772042,255.9,255.8,30.84772042]
[1737231349282,30.84772042,255.88,255.78,30.84772042]
[1737231349477,30.84772042,255.86,255.76,30.84772042]
[1737231349692,0.73294508,255.85,255.76,30.84772042]
[1737231349871,31.58066549,255.9,255.73,5.0]
[1737231350075,30.84772042,255.77,255.7,0.063]
[1737231350391,30.84772042,255.75,255.7,0.063]
[1737231351893,31.58086084,255.83,255.72,30.84772042]
[1737231352369,31.58086084,255.83,255.75,20.0]
[1737231352575,30.84772042,255.87,255.74,20.0]
[1737231352783,30.84772042,255.87,255.77,30.84772042]
[1737231353797,30.84772042,255.87,255.74,20.0]
[1737231353798,30.84772042,255.91,255.81,30.84772042]
[1737231353976,0.73277734,255.9,255.81,30.84772042]
[1737231354294,30.84772042,255.82,255.68,30.84772042]
[1737231354594,30.84772042,255.79,255.68,30.84772042]
[1737231354777,0.73321088,255.78,255.68,30.84772042]
[1737231354977,30.84772042,255.77,255.7,3.9737]
[1737231355172,0.73320916,255.76,255.7,3.9737]
[1737231355371,30.84772042,255.81,255.7,34.82142042]
[1737231355574,4.26,255.87,255.7,34.82142042]
[1737231355575,30.84772042,255.87,255.76,30.84772042]
[1737231355879,30.84772042,255.89,255.78,30.84772042]
[1737231356076,0.73285278,255.88,255.78,30.84772042]
[1737231356277,0.73285278,255.88,255.74,13.6854]
[1737231356278,30.84772042,255.87,255.79,20.0]
[1737231356687,30.84772042,255.91,255.83,20.0]
[1737231357576,0.73277568,255.9,255.83,20.0]
[1737231357776,0.73277568,255.9,255.83,23.9087]
[1737231357981,30.84772042,255.91,255.83,23.9087]
[1737231358377,30.84772042,255.93,255.87,20.0]
[1737231358772,31.58041802,255.99,255.91,20.0]
[1737231358973,30.84772042,255.99,255.91,20.0]
[1737231359384,30.84772042,255.99,255.93,20.0]
[1737231359897,30.84772042,255.99,255.93,23.9072]
[1737231360596,30.84772042,255.94,255.85,30.84772042]
[1737231360774,30.84772042,255.94,255.84,3.9086]
[1737231360775,0.73271437,255.93,255.86,20.0]
[1737231360975,30.84772042,255.88,255.77,30.84772042]
[1737231361184,0.73294611,255.87,255.77,30.84772042]
[1737231361982,30.84772042,255.89,255.79,30.84772042]
[1737231362377,0.73284005,255.93,255.88,30.84772042]
[1737231362599,30.84772042,256.03,255.92,30.84772042]
[1737231362774,31.58028341,256.02,255.91,50.84772042]
[1737231362977,0.73256299,256.02,255.93,30.84772042]
[1737231363277,0.73245841,256.03,255.93,30.84772042]
[1737231363483,0.73245841,256.03,255.96,20.0]
[1737231363701,0.73245841,256.03,255.98,20.0]
[1737231363905,30.84772042,256.02,255.91,30.84772042]
[1737231364205,30.84772042,256.0,255.89,30.84772042]
[1737231364400,0.73257843,255.99,255.92,20.0]
[1737231364893,0.73257843,255.99,255.91,30.84772042]
[1737231365081,30.84772042,256.02,255.94,20.0]
[1737231365281,30.84772042,256.02,255.91,30.84772042]
[1737231365282,0.73251459,256.01,255.93,30.84772042]
[1737231365491,30.84772042,256.02,255.93,30.84772042]
[1737231365695,30.84772042,256.04,255.93,30.84772042]
[1737231366007,0.73242527,256.1,256.02,20.0]
[1737231366299,0.73242527,256.1,255.92,18.676]
[1737231366300,30.84772042,256.05,255.95,30.84772042]
[1737231366501,0.732444,256.04,255.98,20.0]
[1737231366707,0.732444,256.04,255.93,30.84772042]
[1737231366897,0.732444,256.04,255.96,20.0]
[1737231367500,30.84772042,256.01,255.91,34.75522042]
[1737231367711,30.84772042,255.99,255.91,3.9075]
[1737231367909,0.73258787,255.98,255.92,20.0]
[1737231368087,30.84772042,255.97,255.89,3.9078]
[1737231368282,0.73268692,255.96,255.89,3.9078]
[1737231368499,0.73268692,255.96,255.9,20.0]
[1737231369018,30.84772042,255.99,255.92,20.0]
[1737231369307,0.73254395,255.98,255.92,20.0]
[1737231370014,0.73254395,255.98,255.85,30.84772042]
[1737231370015,30.84772042,255.97,255.85,30.84772042]
[1737231370313,30.84772042,255.92,255.86,20.0]
[1737231370487,0.73277916,255.91,255.81,30.84772042]
[1737231370897,0.73277916,255.91,255.84,20.0]
[1737231371093,0.73277916,255.91,255.85,3.9085]
[1737231371806,0.7327699,255.96,255.85,44.52752042]
[1737231372004,30.84772042,255.97,255.9,20.0]
[1737231372197,30.84772042,255.91,255.85,3.9085]
[1737231372407,30.84772042,255.89,255.79,34.75712042]
[1737231372591,0.7328937,255.88,255.79,34.75712042]
[1737231372906,30.84772042,255.83,255.78,0.063]
[1737231373104,30.84772042,255.85,255.78,3.9725]
[1737231373316,30.84772042,255.83,255.78,3.9725]
[1737231373488,0.73308186,255.82,255.78,3.9725]
[1737231374188,0.73308186,255.82,255.78,0.063]
[1737231374383,0.73308186,255.82,255.7,0.063]
[1737231374384,5.0,255.72,255.57,15.04029723]
[1737231374611,5.0,255.66,255.46,0.063]
[1737231374800,30.84772042,255.57,255.47,5.0]
[1737231375109,30.84772042,255.57,255.46,0.063]
[1737231375487,58.53740442,255.57,255.46,0.063]
[1737231375719,59.27140635,255.57,255.46,0.063]
[1737231376219,54.62460442,255.53,255.46,0.063]
[1737231376386,30.84772042,255.53,255.46,0.063]
[1737231378117,54.62460442,255.53,255.46,0.063]
[1737231378414,55.35860994,255.53,255.46,0.063]
[1737231381300,37.690384,255.52,255.46,0.063]
[1737231381508,81.69544084,255.47,255.46,0.063]
[1737231381897,74.62460442,255.47,255.46,0.063]
[1737231382311,105.47232484,255.47,255.46,0.063]
[1737231382517,74.62460442,255.47,255.46,0.063]
[1737231382710,50.84772042,255.47,255.46,0.063]
[1737231382912,30.84772042,255.47,255.46,0.063]
[1737231384316,30.84772042,255.53,255.46,20.063]
[1737231384620,30.84772042,255.57,255.5,20.0]
[1737231384993,30.84772042,255.55,255.5,20.0]
[1737231385393,30.84772042,255.55,255.51,3.9137]
[1737231386107,30.84772042,255.53,255.49,20.0]
[1737231386316,30.84772042,255.51,255.47,3.9143]
[1737231387117,30.84772042,255.49,255.46,0.063]
[1737231388616,30.84772042,255.51,255.46,3.9774]
[1737231388797,30.84772042,255.53,255.46,23.9774]
[1737231389522,30.84772042,255.53,255.48,20.0]
[1737231389816,30.84772042,255.55,255.48,20.0]
[1737231390003,30.87772042,255.57,255.5,20.0]
[1737231390208,0.03,255.57,255.52,20.0]
[1737231390901,30.84772042,255.55,255.46,13.7636]
[1737231391221,30.84772042,255.55,255.49,20.0]
[1737231391419,0.03,255.57,255.52,20.0]
[1737231391818,30.84772042,255.53,255.46,0.063]
[1737231392110,30.84772042,255.51,255.46,3.9774]
[1737231392516,30.84772042,255.49,255.46,0.063]
[1737231392727,0.73394602,255.48,255.46,0.063]
[1737231392925,30.84772042,255.47,255.46,0.063]
[1737231393800,55.35868789,255.47,255.46,0.063]
[1737231394709,23.776884,255.44,255.3,3.9168]
[1737231394912,30.84772042,255.37,255.27,0.063]
[1737231395112,30.84772042,255.32,255.27,0.063]
[1737231395616,30.84772042,255.3,255.27,0.063]
[1737231395799,30.84772042,255.28,255.27,0.063]
[1737231396696,54.62460442,255.28,255.27,0.063]
[1737231397498,23.776884,255.27,255.25,0.063]
[1737231397706,55.35952732,255.26,255.25,0.063]
[1737231398624,23.776884,255.21,255.2,0.063]
[1737231398799,54.62460442,255.21,255.2,0.063]
[1737231399005,23.776884,255.17,254.99,30.84772042]
[1737231399213,30.84772042,255.09,254.99,30.84772042]
[1737231399809,0.73509551,255.08,255.02,20.0]
[1737231400122,30.84772042,255.05,254.98,3.9218]
[1737231400521,30.84772042,255.05,255.0,20.0]
[1737231401121,30.84772042,255.09,255.02,20.0]
[1737231401425,0.73520231,255.12,255.04,20.0]
[1737231401426,30.84772042,255.11,255.04,20.0]
[1737231401812,0.73508242,255.1,255.04,20.0]
[1737231402012,30.84772042,255.13,255.06,20.0]
[1737231402926,30.84772042,255.19,255.12,20.0]
[1737231403104,0.73487171,255.18,255.08,50.84772042]
[1737231403729,30.84772042,255.19,255.13,20.0]
[1737231403915,30.84772042,255.19,255.14,3.9194]
[1737231404112,0.73479584,255.18,255.13,20.0]
[1737231404826,0.73479584,255.18,255.12,3.9196]
[1737231405211,30.84772042,255.23,255.17,20.0]
[1737231405416,0.73491935,255.27,255.17,20.0]
[1737231405417,30.84772042,255.25,255.17,20.0]
[1737231405620,30.84772042,255.23,255.17,20.0]
[1737231405805,0.73477756,255.22,255.17,20.0]
[1737231406002,30.84772042,255.19,255.1,30.84772042]
[1737231406227,30.84772042,255.19,255.06,9.8012]
[1737231406228,0.73496088,255.18,255.08,30.84772042]
[1737231406436,0.73496088,255.18,255.11,20.0]
[1737231406817,30.84772042,255.21,255.12,30.84772042]
[1737231407005,0.73480512,255.2,255.12,30.84772042]
[1737231407212,30.84772042,255.19,255.1,50.84772042]
[1737231407425,0.73489454,255.18,255.1,50.84772042]
[1737231407933,0.73489454,255.18,254.92,36.8402]
[1737231407934,30.84772042,255.16,255.06,30.84772042]
[1737231408229,30.84772042,255.13,255.03,30.84772042]
[1737231408432,0.7350589,255.12,255.06,20.0]
[1737231409319,30.84772042,255.15,255.08,20.0]
[1737231409710,30.84772042,255.17,255.08,20.0]
[1737231409910,0.73494104,255.16,255.09,30.84772042]
[1737231410131,0.73494104,255.16,255.09,34.76782042]
[1737231411219,30.84772042,255.23,255.15,30.84772042]
[1737231411519,0.73476353,255.22,255.15,30.84772042]
[1737231411719,30.84772042,255.3,255.22,20.0]
[1737231411918,0.73455666,255.29,255.23,3.918]
[1737231412133,30.84772042,255.34,255.25,30.84772042]
[1737231412312,0.73444565,255.33,255.25,30.84772042]
[1737231412935,4.38,255.43,255.23,3.918]
[1737231412936,31.58216447,255.42,255.31,30.84772042]
[1737231413114,31.58216447,255.42,255.33,30.84772042]
[1737231413928,30.84772042,255.44,255.35,30.84772042]
[1737231414128,0.72884902,255.43,255.36,3.916]
[1737231414430,0.03,255.48,255.42,20.0]
[1737231414734,0.76399641,255.48,255.41,30.84772042]
[1737231415034,0.03,255.48,255.41,30.84772042]
[1737231415238,0.7640515,255.48,255.41,30.84772042]